[Event "Titled Tuesday Blitz March 29 Early 2022"]
[White "Sargsyan, Anna M."]
[Black "Sapunov, Evgeny"]
[WhiteFideId "13308130"]
[BlackFideId "4126661"]
[WhiteElo "2271"]
[BlackElo "2470"]
[Result "0-1"]
[Round "11"]
[TimeControl "180+1"]
[Date "2022.03.29"]
[WhiteClock "0:00:01"]
[BlackClock "0:00:07"]

1. d4 {[%clk 0:03:00]}  Nf6 {[%clk 0:02:59]} 2. c4 {[%clk 0:03:00]}  g6 {[%clk 0:02:59]} 3. g3 {[%clk 0:03:01]}  Bg7 {[%clk 0:02:59]} 4. Bg2 {[%clk 0:03:02]}  O-O {[%clk 0:03:00]} 5. Nc3 {[%clk 0:03:02]}  d6 {[%clk 0:03:01]} 6. Nf3 {[%clk 0:03:03]}  Nc6 {[%clk 0:03:01]} 7. O-O {[%clk 0:03:02]}  Bf5 {[%clk 0:03:01]} 8. Nh4 {[%clk 0:03:00]}  Bd7 {[%clk 0:03:01]} 9. f4 {[%clk 0:02:56]}  Na5 {[%clk 0:02:57]} 10. Qd3 {[%clk 0:02:49]}  c5 {[%clk 0:02:56]} 11. dxc5 {[%clk 0:02:43]}  dxc5 {[%clk 0:02:56]} 12. e4 {[%clk 0:02:43]}  e5 {[%clk 0:02:52]} 13. Nd5 {[%clk 0:02:33]}  exf4 {[%clk 0:02:45]} 14. Bxf4 {[%clk 0:02:09]}  Nxd5 {[%clk 0:02:44]} 15. cxd5 {[%clk 0:02:02]}  g5 {[%clk 0:02:43]} 16. Bd6 {[%clk 0:01:48]}  gxh4 {[%clk 0:02:42]} 17. Bxf8 {[%clk 0:01:48]}  Qxf8 {[%clk 0:02:41]} 18. Rf4 {[%clk 0:01:47]}  hxg3 {[%clk 0:02:32]} 19. hxg3 {[%clk 0:01:47]}  Be5 {[%clk 0:02:30]} 20. Rf3 {[%clk 0:01:43]}  Qg7 {[%clk 0:02:28]} 21. Raf1 {[%clk 0:01:41]}  f6 {[%clk 0:02:28]} 22. b4 {[%clk 0:01:31]}  cxb4 {[%clk 0:02:24]} 23. Rc1 {[%clk 0:00:56]}  b5 {[%clk 0:02:19]} 24. d6 {[%clk 0:00:52]}  Rd8 {[%clk 0:01:58]} 25. Rc7 {[%clk 0:00:48]}  Nc4 {[%clk 0:01:44]} 26. Bh3 {[%clk 0:00:37]}  Bxh3 {[%clk 0:01:12]} 27. Qd5+ {[%clk 0:00:31]}  Kh8 {[%clk 0:01:11]} 28. Rxg7 {[%clk 0:00:31]}  Kxg7 {[%clk 0:01:12]} 29. Qxb5 {[%clk 0:00:28]}  Be6 {[%clk 0:01:10]} 30. Qxb4 {[%clk 0:00:22]}  Rxd6 {[%clk 0:01:05]} 31. Qa4 {[%clk 0:00:17]}  a5 {[%clk 0:01:03]} 32. Rb3 {[%clk 0:00:16]}  Kg6 {[%clk 0:00:56]} 33. Rb7 {[%clk 0:00:14]}  Rd8 {[%clk 0:00:53]} 34. Qc6 {[%clk 0:00:13]}  Rd1+ {[%clk 0:00:47]} 35. Kh2 {[%clk 0:00:14]}  Rd2+ {[%clk 0:00:45]} 36. Kh1 {[%clk 0:00:13]}  Rd1+ {[%clk 0:00:24]} 37. Kh2 {[%clk 0:00:14]}  Rd2+ {[%clk 0:00:16]} 38. Kh1 {[%clk 0:00:11]}  Bf7 {[%clk 0:00:09]} 39. Rxf7 {[%clk 0:00:10]}  Rd1+ {[%clk 0:00:08]} 40. Kh2 {[%clk 0:00:08]}  Ne3 {[%clk 0:00:09]} 41. Rd7 {[%clk 0:00:06]}  Re1 {[%clk 0:00:06]} 42. Rd2 {[%clk 0:00:06]}  Ng4+ {[%clk 0:00:05]} 43. Kg2 {[%clk 0:00:06]}  h5 {[%clk 0:00:06]} 44. Qe8+ {[%clk 0:00:05]}  Kg5 {[%clk 0:00:06]} 45. Qg8+ {[%clk 0:00:05]}  Kh6 {[%clk 0:00:06]} 46. Rd7 {[%clk 0:00:03]}  Re2+ {[%clk 0:00:06]} 47. Kf1 {[%clk 0:00:04]}  Rf2+ {[%clk 0:00:06]} 48. Ke1 {[%clk 0:00:04]}  Bc3+ {[%clk 0:00:06]} 49. Kd1 {[%clk 0:00:05]}  Ne3+ {[%clk 0:00:07]} 50. Kc1 {[%clk 0:00:04]}  Rf1+ {[%clk 0:00:07]} 51. Rd1 {[%clk 0:00:01]}  Rxd1# {[%clk 0:00:07]} 0-1


[Site "https://www.chess.com"]

[Event "Titled Tuesday Blitz March 29 Early 2022"]
[White "Secer, Ata"]
[Black "Csonka, Balazs"]
[WhiteFideId "6303293"]
[BlackFideId "742910"]
[WhiteElo "2282"]
[BlackElo "2404"]
[Result "1/2-1/2"]
[Round "11"]
[TimeControl "180+1"]
[Date "2022.03.29"]
[WhiteClock "0:02:55"]
[BlackClock "0:02:13"]

1. e4 {[%clk 0:02:59]}  c6 {[%clk 0:02:59]} 2. d4 {[%clk 0:02:59]}  d5 {[%clk 0:02:59]} 3. Nc3 {[%clk 0:03:00]}  dxe4 {[%clk 0:02:59]} 4. Nxe4 {[%clk 0:03:01]}  Bf5 {[%clk 0:02:59]} 5. Ng3 {[%clk 0:03:01]}  Bg6 {[%clk 0:02:59]} 6. Nh3 {[%clk 0:03:02]}  Nf6 {[%clk 0:02:55]} 7. Nf4 {[%clk 0:03:02]}  e5 {[%clk 0:02:55]} 8. Nxg6 {[%clk 0:03:02]}  hxg6 {[%clk 0:02:56]} 9. dxe5 {[%clk 0:03:03]}  Qa5+ {[%clk 0:02:55]} 10. Bd2 {[%clk 0:03:03]}  Qxe5+ {[%clk 0:02:55]} 11. Qe2 {[%clk 0:03:04]}  Nbd7 {[%clk 0:02:54]} 12. Qxe5+ {[%clk 0:03:04]}  Nxe5 {[%clk 0:02:54]} 13. Be2 {[%clk 0:03:05]}  Bc5 {[%clk 0:02:51]} 14. O-O {[%clk 0:03:04]}  O-O {[%clk 0:02:46]} 15. Rad1 {[%clk 0:03:00]}  Rfe8 {[%clk 0:02:38]} 16. h3 {[%clk 0:03:00]}  Bb6 {[%clk 0:02:34]} 17. Rfe1 {[%clk 0:02:59]}  Rad8 {[%clk 0:02:29]} 18. Bc1 {[%clk 0:02:55]}  Kf8 {[%clk 0:02:20]} 19. Kf1 {[%clk 0:02:55]}  a5 {[%clk 0:02:13]} 1/2-1/2


[Site "https://www.chess.com"]

[Event "Titled Tuesday Blitz March 29 Early 2022"]
[White "Seo, Jung Min"]
[Black "Hua, Lefong"]
[WhiteFideId "1734687"]
[BlackFideId "2602253"]
[WhiteElo "2401"]
[BlackElo "2605"]
[Result "1-0"]
[Round "11"]
[TimeControl "180+1"]
[Date "2022.03.29"]
[WhiteClock "0:00:03"]
[BlackClock "0:00:07"]

1. d4 {[%clk 0:03:00]}  Nf6 {[%clk 0:02:59]} 2. c4 {[%clk 0:03:01]}  g6 {[%clk 0:02:58]} 3. Nc3 {[%clk 0:03:00]}  Bg7 {[%clk 0:02:58]} 4. e4 {[%clk 0:03:00]}  d6 {[%clk 0:02:59]} 5. Nf3 {[%clk 0:03:01]}  O-O {[%clk 0:02:57]} 6. Be2 {[%clk 0:03:01]}  Bg4 {[%clk 0:02:57]} 7. h3 {[%clk 0:02:54]}  Bxf3 {[%clk 0:02:56]} 8. Bxf3 {[%clk 0:02:55]}  Nfd7 {[%clk 0:02:50]} 9. Be3 {[%clk 0:02:53]}  c5 {[%clk 0:02:50]} 10. d5 {[%clk 0:02:53]}  Na6 {[%clk 0:02:51]} 11. O-O {[%clk 0:02:51]}  Nc7 {[%clk 0:02:51]} 12. Be2 {[%clk 0:02:48]}  e6 {[%clk 0:02:49]} 13. Qd2 {[%clk 0:02:46]}  exd5 {[%clk 0:02:49]} 14. exd5 {[%clk 0:02:45]}  Re8 {[%clk 0:02:44]} 15. Rfe1 {[%clk 0:02:44]}  a6 {[%clk 0:02:43]} 16. Bf1 {[%clk 0:02:41]}  Rb8 {[%clk 0:02:39]} 17. a4 {[%clk 0:02:39]}  b6 {[%clk 0:02:38]} 18. Rad1 {[%clk 0:02:37]}  f5 {[%clk 0:02:30]} 19. Bg5 {[%clk 0:02:34]}  Bf6 {[%clk 0:02:28]} 20. Bf4 {[%clk 0:02:34]}  Ne5 {[%clk 0:02:26]} 21. Be3 {[%clk 0:02:31]}  Qd7 {[%clk 0:02:21]} 22. f4 {[%clk 0:02:31]}  Nf7 {[%clk 0:02:21]} 23. Bf2 {[%clk 0:02:21]}  Rxe1 {[%clk 0:02:13]} 24. Rxe1 {[%clk 0:02:21]}  Re8 {[%clk 0:02:13]} 25. Rxe8+ {[%clk 0:02:19]}  Qxe8 {[%clk 0:02:13]} 26. b3 {[%clk 0:02:18]}  h5 {[%clk 0:02:07]} 27. g3 {[%clk 0:02:15]}  Qe7 {[%clk 0:02:01]} 28. Kg2 {[%clk 0:02:13]}  Bg7 {[%clk 0:02:01]} 29. Bd3 {[%clk 0:02:12]}  Qf6 {[%clk 0:01:58]} 30. Nd1 {[%clk 0:02:12]}  a5 {[%clk 0:01:54]} 31. Qe2 {[%clk 0:02:10]}  Kf8 {[%clk 0:01:53]} 32. Qf3 {[%clk 0:02:01]}  Nh6 {[%clk 0:01:51]} 33. Be1 {[%clk 0:01:56]}  Qa1 {[%clk 0:01:47]} 34. Qe2 {[%clk 0:01:53]}  Kf7 {[%clk 0:01:37]} 35. Ne3 {[%clk 0:01:42]}  Qb2 {[%clk 0:01:33]} 36. Bc2 {[%clk 0:01:33]}  Qd4 {[%clk 0:01:30]} 37. Nf1 {[%clk 0:01:32]}  Qb2 {[%clk 0:01:18]} 38. Nh2 {[%clk 0:01:30]}  Bc3 {[%clk 0:01:14]} 39. Bf2 {[%clk 0:01:24]}  Bd4 {[%clk 0:01:12]} 40. Nf3 {[%clk 0:01:24]}  Bxf2 {[%clk 0:01:09]} 41. Ng5+ {[%clk 0:01:23]}  Kf8 {[%clk 0:01:02]} 42. Kxf2 {[%clk 0:01:23]}  Qd4+ {[%clk 0:00:48]} 43. Kg2 {[%clk 0:01:23]}  Nf7 {[%clk 0:00:41]} 44. Nf3 {[%clk 0:01:02]}  Qf6 {[%clk 0:00:40]} 45. Bd3 {[%clk 0:01:00]}  Kg7 {[%clk 0:00:33]} 46. Bc2 {[%clk 0:00:54]}  Qb2 {[%clk 0:00:30]} 47. Kf2 {[%clk 0:00:52]}  Qf6 {[%clk 0:00:30]} 48. Bd1 {[%clk 0:00:52]}  Qc3 {[%clk 0:00:28]} 49. Kg2 {[%clk 0:00:51]}  Qf6 {[%clk 0:00:29]} 50. Qd2 {[%clk 0:00:51]}  Kf8 {[%clk 0:00:28]} 51. Be2 {[%clk 0:00:49]}  Kg8 {[%clk 0:00:28]} 52. Nh2 {[%clk 0:00:45]}  Kg7 {[%clk 0:00:27]} 53. g4 {[%clk 0:00:44]}  hxg4 {[%clk 0:00:24]} 54. hxg4 {[%clk 0:00:44]}  Qd4 {[%clk 0:00:23]} 55. Qxd4+ {[%clk 0:00:39]}  cxd4 {[%clk 0:00:24]} 56. gxf5 {[%clk 0:00:39]}  gxf5 {[%clk 0:00:24]} 57. Nf3 {[%clk 0:00:39]}  Kf6 {[%clk 0:00:20]} 58. Nxd4 {[%clk 0:00:39]}  Na6 {[%clk 0:00:20]} 59. Bd3 {[%clk 0:00:39]}  Nc5 {[%clk 0:00:20]} 60. Bxf5 {[%clk 0:00:34]}  Nxb3 {[%clk 0:00:19]} 61. Nxb3 {[%clk 0:00:34]}  Kxf5 {[%clk 0:00:19]} 62. Kf3 {[%clk 0:00:35]}  Nd8 {[%clk 0:00:15]} 63. Nd4+ {[%clk 0:00:32]}  Kf6 {[%clk 0:00:16]} 64. Nb5 {[%clk 0:00:30]}  Nb7 {[%clk 0:00:16]} 65. Ke3 {[%clk 0:00:28]}  Ke7 {[%clk 0:00:16]} 66. Na7 {[%clk 0:00:20]}  Kd8 {[%clk 0:00:14]} 67. Nb5 {[%clk 0:00:17]}  Kd7 {[%clk 0:00:13]} 68. Nc3 {[%clk 0:00:16]}  Nc5 {[%clk 0:00:13]} 69. f5 {[%clk 0:00:15]}  Ke7 {[%clk 0:00:13]} 70. Kf4 {[%clk 0:00:15]}  Kf7 {[%clk 0:00:13]} 71. Kg5 {[%clk 0:00:15]}  Kg7 {[%clk 0:00:13]} 72. f6+ {[%clk 0:00:13]}  Kf7 {[%clk 0:00:13]} 73. Kf5 {[%clk 0:00:13]}  Nb3 {[%clk 0:00:12]} 74. Ne4 {[%clk 0:00:11]}  Nc5 {[%clk 0:00:12]} 75. Nxc5 {[%clk 0:00:09]}  bxc5 {[%clk 0:00:11]} 76. Kg5 {[%clk 0:00:09]}  Kf8 {[%clk 0:00:11]} 77. Kg6 {[%clk 0:00:09]}  Kg8 {[%clk 0:00:12]} 78. Kf5 {[%clk 0:00:04]}  Kf7 {[%clk 0:00:12]} 79. Kg5 {[%clk 0:00:04]}  Kf8 {[%clk 0:00:12]} 80. Kg4 {[%clk 0:00:03]}  Kg8 {[%clk 0:00:10]} 81. Kf4 {[%clk 0:00:03]}  Kf8 {[%clk 0:00:10]} 82. Kg5 {[%clk 0:00:03]}  Kf7 {[%clk 0:00:06]} 83. Kf5 {[%clk 0:00:03]}  Kf8 {[%clk 0:00:07]} 84. Ke6 {[%clk 0:00:03]} 1-0


[Site "https://www.chess.com"]

[Event "Titled Tuesday Blitz March 29 Early 2022"]
[White "Shtyka, Sergey"]
[Black "Legenia, Artem"]
[WhiteFideId "4138465"]
[BlackFideId "14136945"]
[WhiteElo "2014"]
[BlackElo "1936"]
[Result "1-0"]
[Round "11"]
[TimeControl "180+1"]
[Date "2022.03.30"]
[WhiteClock "0:02:23"]
[BlackClock "0:02:22"]

1. e4 {[%clk 0:02:48]}  c6 {[%clk 0:02:43]} 2. Nf3 {[%clk 0:02:48]}  d5 {[%clk 0:02:41]} 3. Nc3 {[%clk 0:02:48]}  dxe4 {[%clk 0:02:41]} 4. Nxe4 {[%clk 0:02:48]}  Nf6 {[%clk 0:02:42]} 5. Nxf6+ {[%clk 0:02:47]}  exf6 {[%clk 0:02:42]} 6. g3 {[%clk 0:02:48]}  Bd6 {[%clk 0:02:42]} 7. Bg2 {[%clk 0:02:48]}  O-O {[%clk 0:02:43]} 8. O-O {[%clk 0:02:49]}  Na6 {[%clk 0:02:38]} 9. d4 {[%clk 0:02:48]}  Nc7 {[%clk 0:02:38]} 10. c4 {[%clk 0:02:47]}  Bg4 {[%clk 0:02:37]} 11. Qd3 {[%clk 0:02:45]}  Bxf3 {[%clk 0:02:36]} 12. Bxf3 {[%clk 0:02:44]}  Ne6 {[%clk 0:02:36]} 13. Be3 {[%clk 0:02:41]}  g6 {[%clk 0:02:36]} 14. Rac1 {[%clk 0:02:37]}  f5 {[%clk 0:02:32]} 15. d5 {[%clk 0:02:34]}  Ng5 {[%clk 0:02:31]} 16. Bxg5 {[%clk 0:02:30]}  Qxg5 {[%clk 0:02:22]} 17. dxc6 {[%clk 0:02:23]} 1-0


[Site "https://www.chess.com"]

[Event "Titled Tuesday Blitz March 29 Early 2022"]
[White "Shuvalov, Evgenij"]
[Black "Krysa, Leandro"]
[WhiteFideId "4187237"]
[BlackFideId "116807"]
[WhiteElo "2497"]
[BlackElo "2623"]
[Result "1-0"]
[Round "11"]
[TimeControl "180+1"]
[Date "2022.03.30"]
[WhiteClock "0:00:14"]
[BlackClock "0:00:06"]

1. Nf3 {[%clk 0:02:34]}  d5 {[%clk 0:02:59]} 2. c4 {[%clk 0:02:33]}  c6 {[%clk 0:02:58]} 3. g3 {[%clk 0:02:33]}  Nf6 {[%clk 0:02:57]} 4. Bg2 {[%clk 0:02:33]}  dxc4 {[%clk 0:02:58]} 5. O-O {[%clk 0:02:32]}  b5 {[%clk 0:02:55]} 6. d3 {[%clk 0:02:30]}  cxd3 {[%clk 0:02:54]} 7. Ne5 {[%clk 0:02:30]}  dxe2 {[%clk 0:02:38]} 8. Qxe2 {[%clk 0:02:24]}  Bb7 {[%clk 0:02:37]} 9. Rd1 {[%clk 0:02:22]}  Qb6 {[%clk 0:02:36]} 10. Be3 {[%clk 0:02:19]}  Qa6 {[%clk 0:02:26]} 11. Nd2 {[%clk 0:01:52]}  e6 {[%clk 0:02:25]} 12. Nb3 {[%clk 0:01:52]}  Nd5 {[%clk 0:02:17]} 13. Bc5 {[%clk 0:01:48]}  Bxc5 {[%clk 0:02:11]} 14. Nxc5 {[%clk 0:01:48]}  Qb6 {[%clk 0:02:12]} 15. Rac1 {[%clk 0:01:45]}  O-O {[%clk 0:02:06]} 16. Ncd7 {[%clk 0:01:41]}  Nxd7 {[%clk 0:02:07]} 17. Nxd7 {[%clk 0:01:42]}  Qa5 {[%clk 0:02:06]} 18. Nxf8 {[%clk 0:01:41]}  Rxf8 {[%clk 0:02:05]} 19. a3 {[%clk 0:01:39]}  b4 {[%clk 0:01:57]} 20. Bxd5 {[%clk 0:01:07]}  exd5 {[%clk 0:01:54]} 21. Qe7 {[%clk 0:01:06]}  Qb6 {[%clk 0:01:49]} 22. Qxb4 {[%clk 0:01:04]}  h6 {[%clk 0:01:42]} 23. Re1 {[%clk 0:00:57]}  d4 {[%clk 0:01:26]} 24. Re7 {[%clk 0:00:51]}  Ba8 {[%clk 0:01:25]} 25. Rce1 {[%clk 0:00:36]}  Qd8 {[%clk 0:01:16]} 26. Rxa7 {[%clk 0:00:25]}  c5 {[%clk 0:00:59]} 27. Qxc5 {[%clk 0:00:23]}  d3 {[%clk 0:00:59]} 28. Rd1 {[%clk 0:00:21]}  Bf3 {[%clk 0:00:57]} 29. Rd2 {[%clk 0:00:20]}  Re8 {[%clk 0:00:54]} 30. Qc1 {[%clk 0:00:16]}  Qd4 {[%clk 0:00:47]} 31. Rc7 {[%clk 0:00:14]}  Qe5 {[%clk 0:00:32]} 32. Rc8 {[%clk 0:00:14]}  Rxc8 {[%clk 0:00:25]} 33. Qxc8+ {[%clk 0:00:14]}  Kh7 {[%clk 0:00:25]} 34. Qc1 {[%clk 0:00:15]}  Qe4 {[%clk 0:00:17]} 35. b4 {[%clk 0:00:12]}  h5 {[%clk 0:00:09]} 36. h4 {[%clk 0:00:11]}  Bh1 {[%clk 0:00:08]} 37. Qf1 {[%clk 0:00:10]}  f5 {[%clk 0:00:05]} 38. Rxd3 {[%clk 0:00:10]}  Qc6 {[%clk 0:00:02]} 39. Re3 {[%clk 0:00:09]}  Be4 {[%clk 0:00:02]} 40. b5 {[%clk 0:00:09]}  Qc2 {[%clk 0:00:02]} 41. Qe2 {[%clk 0:00:09]}  Qb1+ {[%clk 0:00:02]} 42. Qe1 {[%clk 0:00:09]}  Qxb5 {[%clk 0:00:01]} 43. Rxe4 {[%clk 0:00:09]}  Qb7 {[%clk 0:00:02]} 44. Re5 {[%clk 0:00:09]}  Kg6 {[%clk 0:00:03]} 45. Re6+ {[%clk 0:00:09]}  Kh7 {[%clk 0:00:03]} 46. Re7 {[%clk 0:00:10]}  Qf3 {[%clk 0:00:03]} 47. Re3 {[%clk 0:00:10]}  Qg4 {[%clk 0:00:03]} 48. Qe2 {[%clk 0:00:11]}  Qg6 {[%clk 0:00:03]} 49. Kg2 {[%clk 0:00:11]}  f4 {[%clk 0:00:03]} 50. Rf3 {[%clk 0:00:11]}  fxg3 {[%clk 0:00:03]} 51. Rxg3 {[%clk 0:00:11]}  Qc6+ {[%clk 0:00:04]} 52. Qf3 {[%clk 0:00:12]}  Qd6 {[%clk 0:00:04]} 53. Qxh5+ {[%clk 0:00:12]}  Kg8 {[%clk 0:00:04]} 54. Qg4 {[%clk 0:00:12]}  Qd5+ {[%clk 0:00:03]} 55. Kh2 {[%clk 0:00:13]}  Kf8 {[%clk 0:00:03]} 56. Rf3+ {[%clk 0:00:12]}  Ke8 {[%clk 0:00:03]} 57. Re3+ {[%clk 0:00:12]}  Kf8 {[%clk 0:00:03]} 58. Qf3+ {[%clk 0:00:11]}  Kg8 {[%clk 0:00:03]} 59. Qxd5+ {[%clk 0:00:11]}  Kh8 {[%clk 0:00:04]} 60. Qf3 {[%clk 0:00:12]}  Kh7 {[%clk 0:00:04]} 61. Qg3 {[%clk 0:00:13]}  Kh8 {[%clk 0:00:05]} 62. Re7 {[%clk 0:00:13]}  Kh7 {[%clk 0:00:06]} 63. Qxg7# {[%clk 0:00:14]} 1-0


[Site "https://www.chess.com"]

[Event "Titled Tuesday Blitz March 29 Early 2022"]
[White "Shuvalova, Polina"]
[Black "Vokhidov, Shamsiddin"]
[WhiteFideId "24171760"]
[BlackFideId "14204223"]
[WhiteElo "2355"]
[BlackElo "2611"]
[Result "0-1"]
[Round "11"]
[TimeControl "180+1"]
[Date "2022.03.29"]
[WhiteClock "0:00:01"]
[BlackClock "0:01:21"]

1. d4 {[%clk 0:03:00]}  Nf6 {[%clk 0:03:00]} 2. Nf3 {[%clk 0:03:00]}  d5 {[%clk 0:03:00]} 3. Bf4 {[%clk 0:03:00]}  c5 {[%clk 0:03:00]} 4. e3 {[%clk 0:03:00]}  Nc6 {[%clk 0:03:01]} 5. Nbd2 {[%clk 0:03:00]}  Nh5 {[%clk 0:03:01]} 6. dxc5 {[%clk 0:02:59]}  Nxf4 {[%clk 0:03:01]} 7. exf4 {[%clk 0:03:00]}  g6 {[%clk 0:03:01]} 8. c3 {[%clk 0:02:59]}  Bh6 {[%clk 0:03:01]} 9. g3 {[%clk 0:02:58]}  O-O {[%clk 0:03:02]} 10. Bg2 {[%clk 0:02:54]}  b6 {[%clk 0:03:01]} 11. cxb6 {[%clk 0:02:53]}  Qxb6 {[%clk 0:03:02]} 12. Nb3 {[%clk 0:02:47]}  a5 {[%clk 0:03:01]} 13. O-O {[%clk 0:02:05]}  a4 {[%clk 0:03:01]} 14. Nbd4 {[%clk 0:02:06]}  Nxd4 {[%clk 0:03:01]} 15. Qxd4 {[%clk 0:02:04]}  Qxb2 {[%clk 0:03:01]} 16. Rfb1 {[%clk 0:01:55]}  Qa3 {[%clk 0:03:01]} 17. Ne5 {[%clk 0:01:36]}  e6 {[%clk 0:02:40]} 18. Qb4 {[%clk 0:01:23]}  Qxb4 {[%clk 0:02:38]} 19. Rxb4 {[%clk 0:01:23]}  Ra5 {[%clk 0:02:25]} 20. Rab1 {[%clk 0:01:19]}  Ba6 {[%clk 0:02:23]} 21. a3 {[%clk 0:01:15]}  Rc8 {[%clk 0:02:19]} 22. Rb8 {[%clk 0:01:09]}  Rc5 {[%clk 0:02:19]} 23. Rxc8+ {[%clk 0:00:53]}  Rxc8 {[%clk 0:02:18]} 24. Rb6 {[%clk 0:00:53]}  Be2 {[%clk 0:02:04]} 25. h4 {[%clk 0:00:46]}  Bf8 {[%clk 0:01:56]} 26. Rb7 {[%clk 0:00:31]}  Bxa3 {[%clk 0:01:45]} 27. Nxf7 {[%clk 0:00:28]}  Bc5 {[%clk 0:01:42]} 28. Bh3 {[%clk 0:00:25]}  Ba6 {[%clk 0:01:36]} 29. Rd7 {[%clk 0:00:19]}  Bb5 {[%clk 0:01:30]} 30. Rb7 {[%clk 0:00:19]}  Bc6 {[%clk 0:01:31]} 31. Nh6+ {[%clk 0:00:16]}  Kh8 {[%clk 0:01:29]} 32. Rf7 {[%clk 0:00:16]}  a3 {[%clk 0:01:27]} 33. Ng4 {[%clk 0:00:09]}  Rf8 {[%clk 0:01:21]} 34. Rc7 {[%clk 0:00:01]}  a2 {[%clk 0:01:21]} 0-1


[Site "https://www.chess.com"]

[Event "Titled Tuesday Blitz March 29 Early 2022"]
[White "Shvedova, Alexandra"]
[Black "Omariev, Maksim"]
[WhiteFideId "54154782"]
[BlackFideId "4193423"]
[WhiteElo "1912"]
[BlackElo "2512"]
[Result "0-1"]
[Round "11"]
[TimeControl "180+1"]
[Date "2022.03.30"]
[WhiteClock "0:00:52"]
[BlackClock "0:00:59"]

1. e4 {[%clk 0:03:00]}  h5 {[%clk 0:02:57]} 2. d4 {[%clk 0:02:58]}  h4 {[%clk 0:02:58]} 3. h3 {[%clk 0:02:59]}  c6 {[%clk 0:02:58]} 4. Nc3 {[%clk 0:02:59]}  d5 {[%clk 0:02:58]} 5. Nf3 {[%clk 0:02:58]}  dxe4 {[%clk 0:02:57]} 6. Nxe4 {[%clk 0:02:58]}  Bf5 {[%clk 0:02:58]} 7. Nc5 {[%clk 0:02:48]}  Nd7 {[%clk 0:02:46]} 8. Nxd7 {[%clk 0:02:43]}  Qxd7 {[%clk 0:02:46]} 9. Bd3 {[%clk 0:02:38]}  Bxd3 {[%clk 0:02:20]} 10. Qxd3 {[%clk 0:02:39]}  e6 {[%clk 0:02:21]} 11. Bf4 {[%clk 0:02:30]}  Ne7 {[%clk 0:02:14]} 12. O-O {[%clk 0:02:17]}  Ng6 {[%clk 0:02:12]} 13. Bh2 {[%clk 0:02:15]}  Bd6 {[%clk 0:02:12]} 14. Ne5 {[%clk 0:02:07]}  Bxe5 {[%clk 0:02:09]} 15. dxe5 {[%clk 0:02:06]}  Qxd3 {[%clk 0:02:09]} 16. cxd3 {[%clk 0:02:07]}  O-O-O {[%clk 0:02:09]} 17. Rad1 {[%clk 0:02:04]}  Rd5 {[%clk 0:02:08]} 18. f4 {[%clk 0:01:57]}  Ne7 {[%clk 0:02:07]} 19. Kf2 {[%clk 0:01:49]}  Nf5 {[%clk 0:02:05]} 20. Ke2 {[%clk 0:01:48]}  Rhd8 {[%clk 0:01:53]} 21. Rd2 {[%clk 0:01:44]}  c5 {[%clk 0:01:46]} 22. b3 {[%clk 0:01:44]}  b5 {[%clk 0:01:43]} 23. Rc1 {[%clk 0:01:43]}  Kb7 {[%clk 0:01:40]} 24. Rc3 {[%clk 0:01:27]}  Nd4+ {[%clk 0:01:27]} 25. Kd1 {[%clk 0:01:21]}  b4 {[%clk 0:01:25]} 26. Rc4 {[%clk 0:01:17]}  Nb5 {[%clk 0:01:22]} 27. Kc2 {[%clk 0:01:12]}  Na3+ {[%clk 0:01:21]} 28. Kc1 {[%clk 0:01:10]}  Nxc4 {[%clk 0:01:21]} 29. bxc4 {[%clk 0:01:09]}  Rxd3 {[%clk 0:01:21]} 30. Rxd3 {[%clk 0:01:09]}  Rxd3 {[%clk 0:01:22]} 31. Kc2 {[%clk 0:01:09]}  Rc3+ {[%clk 0:01:22]} 32. Kb2 {[%clk 0:01:09]}  Rxc4 {[%clk 0:01:23]} 33. Kb3 {[%clk 0:01:05]}  Rc3+ {[%clk 0:01:23]} 34. Kb2 {[%clk 0:01:06]}  a5 {[%clk 0:01:21]} 35. Kb1 {[%clk 0:01:03]}  a4 {[%clk 0:01:21]} 36. Kb2 {[%clk 0:01:03]}  a3+ {[%clk 0:01:21]} 37. Kb1 {[%clk 0:01:03]}  Kc6 {[%clk 0:01:18]} 38. Bg1 {[%clk 0:01:02]}  Kd5 {[%clk 0:01:16]} 39. Bf2 {[%clk 0:01:02]}  Ke4 {[%clk 0:01:16]} 40. Bxh4 {[%clk 0:01:01]}  Kxf4 {[%clk 0:01:16]} 41. Be7 {[%clk 0:01:01]}  Kxe5 {[%clk 0:01:15]} 42. Bf8 {[%clk 0:01:01]}  Kf6 {[%clk 0:01:15]} 43. h4 {[%clk 0:00:58]}  e5 {[%clk 0:01:14]} 44. g4 {[%clk 0:00:56]}  e4 {[%clk 0:01:14]} 45. g5+ {[%clk 0:00:56]}  Kg6 {[%clk 0:01:14]} 46. h5+ {[%clk 0:00:56]}  Kxh5 {[%clk 0:01:08]} 47. Bxg7 {[%clk 0:00:56]}  Kxg5 {[%clk 0:01:07]} 48. Bxc3 {[%clk 0:00:55]}  bxc3 {[%clk 0:01:08]} 49. Kc2 {[%clk 0:00:54]}  e3 {[%clk 0:01:06]} 50. Kb3 {[%clk 0:00:47]}  e2 {[%clk 0:01:05]} 51. Kc4 {[%clk 0:00:47]}  c2 {[%clk 0:01:03]} 52. Kb3 {[%clk 0:00:47]}  c1=Q {[%clk 0:01:02]} 53. Ka4 {[%clk 0:00:47]}  e1=Q {[%clk 0:01:02]} 54. Kb5 {[%clk 0:00:45]}  Qb4+ {[%clk 0:01:02]} 55. Ka6 {[%clk 0:00:44]}  f5 {[%clk 0:01:01]} 56. Ka7 {[%clk 0:00:44]}  f4 {[%clk 0:01:02]} 57. Ka8 {[%clk 0:00:45]}  f3 {[%clk 0:01:02]} 58. Ka7 {[%clk 0:00:46]}  f2 {[%clk 0:01:03]} 59. Ka8 {[%clk 0:00:47]}  f1=Q {[%clk 0:01:02]} 60. Ka7 {[%clk 0:00:48]}  c4 {[%clk 0:01:00]} 61. Ka8 {[%clk 0:00:48]}  c3 {[%clk 0:01:01]} 62. Ka7 {[%clk 0:00:48]}  c2 {[%clk 0:01:01]} 63. Ka8 {[%clk 0:00:48]}  Qcb2 {[%clk 0:01:01]} 64. Ka7 {[%clk 0:00:49]}  c1=Q {[%clk 0:01:01]} 65. Ka8 {[%clk 0:00:49]}  Qxa2 {[%clk 0:01:02]} 66. Ka7 {[%clk 0:00:49]}  Qad2 {[%clk 0:01:00]} 67. Ka8 {[%clk 0:00:50]}  a2 {[%clk 0:01:00]} 68. Ka7 {[%clk 0:00:51]}  Qdd1 {[%clk 0:00:59]} 69. Ka8 {[%clk 0:00:51]}  Qfe1 {[%clk 0:00:59]} 70. Ka7 {[%clk 0:00:51]}  Qbb1 {[%clk 0:00:59]} 71. Ka8 {[%clk 0:00:51]}  Kf4 {[%clk 0:00:59]} 72. Ka7 {[%clk 0:00:52]}  Kf3 {[%clk 0:00:59]} 0-1


[Site "https://www.chess.com"]